bitfinex/quotes_SOLUSD_20241028
["timestamp","ask_amount","ask_price","bid_price","bid_amount"]
[1730080310394,8.91985373,175.81,175.76,5.93176785]
[1730080310594,8.91985373,175.82,175.76,14.85162158]
[1730080311486,8.91985373,175.82,175.77,5.6891]
[1730080311906,8.91985373,175.82,175.78,0.25098]
[1730080312102,8.91985373,175.8,175.76,5.93176785]
[1730080312309,8.91985373,175.79,175.72,0.1]
[1730080312496,8.91985373,175.79,175.74,8.91985373]
[1730080312904,8.91985373,175.8,175.74,8.91985373]
[1730080313410,8.91985373,175.8,175.75,29.717764]
[1730080313614,8.91985373,175.8,175.75,38.63761773]
[1730080313912,14.60795373,175.81,175.75,38.63761773]
[1730080314104,5.6877,175.82,175.77,8.91985373]
[1730080314291,36.82785373,175.83,175.78,0.25098]
[1730080315102,22.2207,175.83,175.78,0.25098]
[1730080315295,31.14055373,175.83,175.78,0.25098]
[1730080315693,36.82785373,175.83,175.78,5.93958]
[1730080316204,8.91985373,175.81,175.78,5.93958]
[1730080316789,8.91985373,175.81,175.78,0.25098]
[1730080317502,8.91985373,175.81,175.76,5.6893]
[1730080318515,14.60775373,175.81,175.76,5.6893]
[1730080318810,14.60775373,175.81,175.77,0.25098]
[1730080319318,5.6879,175.81,175.77,0.25098]
[1730080320285,22.2207,175.83,175.78,8.91985373]
[1730080320484,22.2207,175.83,175.77,24.027864]
[1730080320485,22.2207,175.83,175.79,14.85913373]
[1730080320800,36.82785373,175.83,175.79,5.93948]
[1730080325517,8.91985373,175.82,175.79,5.93948]
[1730080327117,36.82785373,175.83,175.79,5.93948]
[1730080328198,22.2207,175.83,175.79,14.85933373]
[1730080328400,16.0745,175.83,175.8,8.91985373]
[1730080328605,41.4011,175.87,175.81,0.25098]
[1730080328905,8.91985373,175.86,175.81,9.17083373]
[1730080329614,14.60635373,175.86,175.81,14.85863373]
[1730080330604,8.91985373,175.85,175.81,5.93878]
[1730080331513,14.60635373,175.86,175.81,5.93878]
[1730080332700,8.91985373,175.86,175.81,5.93878]
[1730080332893,8.91985373,175.86,175.81,14.85863373]
[1730080333095,5.6866,175.85,175.81,5.93878]
[1730080333296,14.60615373,175.86,175.81,5.93878]
[1730080333509,14.60615373,175.86,175.81,14.85863373]
[1730080334618,14.60615373,175.86,175.81,0.25098]
[1730080334929,8.91985373,175.85,175.81,0.25098]
[1730080335825,8.91985373,175.85,175.81,5.93858]
[1730080340312,14.60615373,175.86,175.81,5.93858]
[1730080342916,5.6863,175.86,175.81,9.17083373]
[1730080343129,14.60615373,175.86,175.81,9.17083373]
[1730080343419,15.7151,175.87,175.81,9.17083373]
[1730080343420,15.7151,175.87,175.84,8.91985373]
[1730080343621,14.2126,175.91,175.87,0.25098]
[1730080343622,15.0799,175.91,175.87,0.25098]
[1730080343998,23.99975373,175.91,175.87,0.25098]
[1730080344620,8.91985373,175.9,175.87,0.25098]
[1730080344823,20.7646,175.91,175.87,0.25098]
[1730080345130,8.91985373,175.9,175.87,0.25098]
[1730080346407,14.60485373,175.9,175.87,0.25098]
[1730080347009,29.68455373,175.91,175.87,0.25098]
[1730080347322,5.6848,175.91,175.88,0.25098]
[1730080348919,14.60465373,175.91,175.88,0.25098]
[1730080351209,5.6848,175.91,175.88,0.25098]
[1730080355537,14.60465373,175.91,175.88,0.25098]
[1730080355933,29.95335373,175.94,175.9,0.25098]
[1730080357908,21.0335,175.94,175.89,5.93608]
[1730080358209,29.95335373,175.94,175.89,14.85593373]
[1730080360631,29.95335373,175.94,175.89,5.93608]
[1730080362940,8.91985373,175.93,175.89,5.93608]
[1730080363120,29.95335373,175.94,175.89,14.85593373]
[1730080366329,29.95335373,175.94,175.89,5.93608]
[1730080369630,15.3495,175.94,175.91,0.25098]
[1730080369824,12.2992,175.96,175.92,8.91985373]
[1730080370031,21.21905373,175.96,175.93,0.25098]
[1730080370534,21.21905373,175.96,175.92,0.25098]
[1730080371945,21.21905373,175.96,175.91,0.25098]
[1730080372247,21.21905373,175.96,175.91,5.93568]
[1730080372748,8.91985373,175.95,175.91,5.93568]
[1730080373751,21.21905373,175.96,175.91,5.93568]
[1730080375330,21.21905373,175.96,175.91,9.17083373]
[1730080376150,21.21905373,175.96,175.91,0.25098]
[1730080376355,8.91985373,175.95,175.91,0.25098]
[1730080377226,8.91985373,175.95,175.91,5.93568]
[1730080379452,21.21905373,175.96,175.91,5.93568]
[1730080379765,8.91985373,175.94,175.91,5.93568]
[1730080379968,6.6161,175.96,175.85,5.7866]
[1730080379969,8.91985373,175.92,175.85,5.7866]
[1730080380136,5.6836,175.95,175.85,5.7866]
[1730080380137,8.91985373,175.91,175.86,8.91985373]
[1730080380534,8.91985373,175.89,175.85,5.6866]
[1730080380735,8.91985373,175.88,175.85,5.6866]
[1730080381134,8.91985373,175.87,175.84,5.92268117]
[1730080381335,8.91985373,175.86,175.84,5.92268117]
[1730080381953,8.91985373,175.86,175.82,5.6876]
[1730080382554,8.91985373,175.86,175.83,0.25098]
[1730080383064,8.91985373,175.86,175.83,5.6873]
[1730080383260,8.91985373,175.86,175.84,0.25098]
[1730080385646,8.91985373,175.86,175.84,5.6869]
[1730080385964,8.91985373,175.86,175.85,0.25098]
[1730080395472,8.91985373,175.87,175.85,0.25098]
[1730080397172,8.91985373,175.86,175.82,5.6876]
[1730080397357,8.91985373,175.85,175.82,5.6876]
[1730080397552,8.91985373,175.84,175.81,11.60869339]
[1730080397752,8.91985373,175.83,175.78,8.91985373]
[1730080398267,8.91985373,175.83,175.79,24.027864]
[1730080399070,8.91985373,175.83,175.81,0.25098]
[1730080399679,8.91985373,175.83,175.74,0.1]
[1730080399680,8.91985373,175.83,175.77,8.91985373]
[1730080399860,8.91985373,175.81,175.79,0.25098]
[1730080400365,8.91985373,175.82,175.79,0.25098]
[1730080400569,8.91985373,175.82,175.79,0.12549]
[1730080401265,8.91985373,175.81,175.79,0.12549]
[1730080401773,8.91985373,175.8,175.76,5.6895]
[1730080402356,8.91985373,175.79,175.76,5.6895]
[1730080403066,8.91985373,175.79,175.77,0.25098]
[1730080403576,8.91985373,175.79,175.75,5.9168102]
[1730080403757,8.91985373,175.78,175.75,5.9168102]
[1730080403956,8.91985373,175.78,175.74,5.6901]
[1730080404786,8.91985373,175.78,175.72,8.91985373]
[1730080404787,8.91985373,175.78,175.72,14.61065373]
[1730080405074,8.91985373,175.78,175.73,0.25098]
[1730080405453,8.91985373,175.77,175.73,0.25098]
[1730080405756,8.91985373,175.76,175.73,0.12549]
[1730080406287,8.91985373,175.77,175.73,0.12549]
[1730080406656,8.91985373,175.77,175.73,5.81579]
[1730080406952,8.91985373,175.77,175.74,0.12549]
[1730080407170,12.3086,175.79,175.74,0.12549]
[1730080407375,8.91985373,175.78,175.74,0.12549]
[1730080408673,8.91985373,175.78,175.74,5.81559]
[1730080409181,8.91985373,175.78,175.75,0.12549]
[1730080410278,8.91985373,175.78,175.75,5.81529]
[1730080411164,15.53985373,175.79,175.75,5.81529]
[1730080411972,15.53985373,175.79,175.76,0.12549]
[1730080412166,8.91985373,175.78,175.76,0.12549]
[1730080413179,8.91985373,175.78,175.75,5.81529]
[1730080413558,8.91985373,175.78,175.75,0.12549]
[1730080416586,8.91985373,175.76,175.71,5.91836344]
[1730080416791,8.91985373,175.73,175.71,5.91836344]
[1730080416974,15.39195373,175.72,175.64,0.1]
[1730080417293,26.0624,175.76,175.69,8.91985373]
[1730080417466,8.91985373,175.75,175.69,8.91985373]
[1730080418083,8.91985373,175.74,175.69,8.91985373]
[1730080418284,20.0,175.75,175.7,0.25098]
[1730080418589,14.61005373,175.74,175.7,0.25098]
[1730080419782,6.0624,175.76,175.7,14.86213373]
[1730080420091,14.98225373,175.76,175.71,8.91985373]
[1730080420690,6.0624,175.76,175.73,8.91985373]
[1730080420902,6.0624,175.76,175.72,14.86163373]
[1730080421269,15.2959,175.77,175.72,14.86163373]
[1730080421567,15.2959,175.77,175.74,0.25098]
[1730080422899,15.2959,175.77,175.74,5.94088]
[1730080427090,15.2959,175.77,175.74,14.86073373]
[1730080428599,15.2959,175.77,175.74,5.94088]
[1730080428892,15.2959,175.77,175.74,0.25098]
[1730080430292,15.2959,175.77,175.74,5.94118]
[1730080432786,15.2959,175.77,175.74,14.86103373]
[1730080434485,5.6886,175.79,175.75,8.91985373]
[1730080437507,8.91985373,175.78,175.74,0.25098]
[1730080438404,8.91985373,175.75,175.69,5.6918]
[1730080438595,8.91985373,175.75,175.69,14.61165373]
[1730080438991,8.91985373,175.75,175.7,8.91985373]
[1730080439696,8.91985373,175.75,175.71,0.25098]
[1730080439897,5.6898,175.76,175.72,8.91985373]
[1730080440111,16.1242,175.77,175.73,0.25098]
[1730080441124,21.8135,175.77,175.73,0.25098]
[1730080442418,6.4865,175.8,175.75,8.91985373]
[1730080442704,8.91985373,175.78,175.73,5.94128]
[1730080442912,8.91985373,175.78,175.73,14.86113373]
[1730080443303,8.91985373,175.78,175.73,5.94128]
[1730080443610,8.91985373,175.76,175.72,5.94178]
[1730080444208,24.73635373,175.75,175.7,5.6912]
[1730080444404,24.73635373,175.75,175.7,14.61105373]
[1730080445194,30.42625373,175.75,175.7,8.91985373]
[1730080446419,30.42625373,175.75,175.69,8.91985373]
[1730080446596,30.42625373,175.75,175.7,0.25098]
[1730080447401,8.91985373,175.74,175.7,5.94248]
[1730080448112,15.17675373,175.74,175.7,5.94248]
[1730080448715,15.17675373,175.74,175.7,0.25098]
[1730080450294,20.86705373,175.74,175.7,0.25098]
[1730080451710,15.17675373,175.74,175.7,0.25098]
[1730080453517,15.17675373,175.74,175.7,5.94228]
[1730080455806,6.2569,175.74,175.7,5.94228]
[1730080457100,15.8165,175.75,175.72,8.91985373]
[1730080457308,8.91985373,175.77,175.73,0.25098]
[1730080457514,4.22501139,175.76,175.73,0.25098]
[1730080457814,8.91985373,175.77,175.73,0.25098]
[1730080458021,4.22530542,175.76,175.73,0.25098]
[1730080458314,8.91985373,175.77,175.73,0.25098]
[1730080458716,4.22545651,175.76,175.73,0.25098]
[1730080458926,8.91985373,175.77,175.73,0.25098]
[1730080459218,8.91985373,175.77,175.73,5.94138]
[1730080461116,14.60875373,175.78,175.73,5.94138]
[1730080462522,4.22628233,175.77,175.73,5.94138]
[1730080462704,14.60875373,175.78,175.73,5.94138]
[1730080463427,21.5453,175.79,175.75,8.91985373]
[1730080463606,21.5453,175.79,175.76,0.25098]
[1730080463804,21.5453,175.79,175.76,9.17083373]
[1730080464000,21.5453,175.79,175.73,5.6904]
[1730080464001,12.1442,175.83,175.78,0.25098]
[1730080464200,6.4569,175.83,175.78,0.25098]
[1730080464404,6.4569,175.83,175.78,9.17083373]
[1730080464903,6.4569,175.83,175.8,8.91985373]
[1730080465122,15.128,175.84,175.81,8.91985373]
[1730080466327,15.128,175.84,175.81,14.60775373]
[1730080467726,15.128,175.84,175.82,0.25098]
[1730080467916,15.17635373,175.87,175.82,9.17083373]
[1730080468320,8.91985373,175.83,175.73,5.6905]
[1730080468510,8.91985373,175.8,175.74,8.91985373]
[1730080469534,8.91985373,175.8,175.75,5.6899]
[1730080470036,8.91985373,175.8,175.76,0.12549]
[1730080470411,8.91985373,175.8,175.76,5.6892]
[1730080470713,8.91985373,175.81,175.76,0.12549]
[1730080471907,8.91985373,175.81,175.77,0.12549]
[1730080472307,8.91985373,175.8,175.76,5.81469]
[1730080473723,8.91985373,175.78,175.71,23.902374]
[1730080473924,8.91985373,175.78,175.73,5.94148]
[1730080475430,15.31475373,175.79,175.74,8.91985373]
[1730080476641,15.31475373,175.79,175.75,5.6899]
[1730080477136,6.3949,175.79,175.75,14.60975373]
[1730080479031,15.31475373,175.79,175.75,0.25098]
[1730080479545,6.3949,175.79,175.75,9.17083373]
[1730080481344,6.3949,175.79,175.76,5.6895]
[1730080482361,8.91985373,175.78,175.75,0.25098]
[1730080484331,15.31475373,175.79,175.75,0.25098]
[1730080484636,15.31475373,175.79,175.76,5.6895]
[1730080485643,15.31475373,175.79,175.75,5.94088]
[1730080486047,6.3949,175.79,175.75,5.94088]
[1730080486656,6.3949,175.79,175.75,9.17083373]
[1730080488633,6.3949,175.79,175.76,5.6895]
[1730080490436,6.3949,175.79,175.75,9.17083373]
[1730080491152,15.5384,175.81,175.75,9.17083373]
[1730080491344,24.45825373,175.81,175.75,9.17083373]
[1730080492653,24.45825373,175.81,175.76,5.6895]
[1730080494636,15.5384,175.81,175.77,0.25098]
[1730080494838,24.45825373,175.81,175.77,0.25098]
[1730080496137,6.2186,175.83,175.78,14.60875373]
[1730080497041,15.13845373,175.83,175.78,14.60875373]
[1730080497449,20.82575373,175.83,175.78,14.60875373]
[1730080498038,15.13845373,175.83,175.78,14.60875373]
[1730080499262,6.2186,175.83,175.78,14.60875373]
[1730080500347,15.13845373,175.83,175.78,14.60875373]
[1730080500762,8.91985373,175.81,175.78,5.6889]
[1730080500967,8.91985373,175.8,175.72,0.25098]
[1730080501141,8.91985373,175.78,175.73,8.91985373]
[1730080501770,8.91985373,175.79,175.73,8.91985373]
[1730080502058,8.91985373,175.78,175.73,8.91985373]
[1730080502272,8.91985373,175.78,175.74,5.6902]
[1730080506540,15.7871,175.79,175.74,8.91985373]
[1730080506846,15.7871,175.79,175.75,0.25098]
[1730080507571,24.70695373,175.79,175.75,0.25098]
[1730080508574,24.70695373,175.79,175.76,5.6895]
[1730080512061,24.70695373,175.79,175.75,0.25098]
[1730080512264,24.70695373,175.79,175.75,5.94078]
[1730080514667,8.91985373,175.78,175.75,0.25098]
[1730080515751,8.91985373,175.78,175.75,5.94058]
[1730080516975,8.91985373,175.78,175.75,0.25098]
[1730080518067,24.70695373,175.79,175.75,0.25098]
[1730080519576,24.70695373,175.79,175.76,5.6895]
[1730080520366,15.7871,175.79,175.75,0.25098]
[1730080520676,15.7871,175.79,175.75,5.94088]
[1730080525893,15.7871,175.79,175.75,0.25098]
[1730080526062,24.70695373,175.79,175.75,0.25098]
[1730080527288,24.70695373,175.79,175.75,5.94088]
[1730080527784,24.70695373,175.79,175.75,5.6899]
[1730080528080,8.91985373,175.78,175.73,8.91985373]
[1730080528293,15.25185373,175.77,175.66,1.0964]
[1730080528463,8.91985373,175.76,175.7,8.91985373]
[1730080528663,8.91985373,175.75,175.68,5.93019669]
[1730080528979,8.91985373,175.75,175.7,8.91985373]
[1730080529363,14.60985373,175.75,175.69,14.61165373]
[1730080529778,14.60985373,175.75,175.7,0.25098]
[1730080530565,14.60985373,175.75,175.7,5.94218]
[1730080531882,8.91985373,175.74,175.7,5.94218]
[1730080532193,20.0,175.75,175.7,5.94218]
[1730080532488,28.91985373,175.75,175.68,5.93019669]
[1730080532696,8.91985373,175.74,175.69,14.61135373]
[1730080532869,8.91985373,175.73,175.69,5.6915]
[1730080533384,8.91985373,175.73,175.68,14.85005042]
[1730080533572,8.91985373,175.73,175.68,20.54205042]
[1730080534179,14.61045373,175.73,175.68,20.54205042]
[1730080535487,6.398,175.72,175.68,11.62219669]
[1730080535672,15.31785373,175.72,175.68,11.62219669]
[1730080536376,8.91985373,175.71,175.68,5.93019669]
[1730080536582,8.91985373,175.71,175.66,14.61235373]
[1730080536896,12.089,175.72,175.66,14.61235373]
[1730080537200,12.089,175.72,175.67,8.91985373]
[1730080537492,21.00885373,175.72,175.67,8.91985373]
[1730080538901,12.089,175.72,175.68,8.91985373]
[1730080544185,21.00885373,175.72,175.67,8.91985373]
[1730080545904,21.00885373,175.72,175.67,14.61225373]
[1730080553609,21.00885373,175.72,175.63,5.92293457]
[1730080553814,21.00885373,175.72,175.67,8.91985373]
[1730080555110,8.91985373,175.71,175.66,5.6928]
[1730080555419,8.91985373,175.71,175.66,14.61265373]
[1730080556189,14.61115373,175.71,175.66,14.61265373]
[1730080557003,8.91985373,175.69,175.64,5.6933]
[1730080557213,8.91985373,175.68,175.64,5.6933]
[1730080558191,8.91985373,175.66,175.63,5.92293457]
[1730080558396,8.91985373,175.66,175.62,14.61385373]
[1730080558599,15.0648,175.67,175.61,0.5980832]
[1730080558792,8.91985373,175.62,175.61,0.5980832]
[1730080560785,14.61365373,175.63,175.61,0.5980832]
[1730080561310,8.91985373,175.64,175.61,0.5980832]
[1730080561502,14.61295373,175.65,175.61,0.5980832]
[1730080561893,8.91985373,175.65,175.61,6.2924832]
[1730080562211,40.80315373,175.66,175.61,15.21233693]
[1730080562512,6.1905,175.66,175.63,8.91985373]
[1730080563216,15.0648,175.67,175.63,8.91985373]
[1730080563517,22.0089,175.71,175.67,0.25098]
[1730080563721,5.6902,175.74,175.69,8.91985373]
[1730080563891,8.91985373,175.72,175.67,9.17083373]
[1730080564293,8.91985373,175.73,175.68,8.91985373]
[1730080564804,5.6902,175.74,175.69,9.17083373]
[1730080565005,14.61005373,175.74,175.69,9.17083373]
[1730080568800,14.61005373,175.74,175.69,0.25098]
[1730080569596,8.91985373,175.73,175.69,0.25098]
[1730080569797,14.61045373,175.73,175.69,0.25098]
[1730080571120,14.61045373,175.73,175.67,8.91985373]
[1730080571290,14.61045373,175.73,175.68,0.25098]
[1730080573007,14.61045373,175.73,175.68,9.17083373]
[1730080574311,14.61045373,175.73,175.68,0.25098]
[1730080574515,8.91985373,175.69,175.63,5.6937]
[1730080574704,8.91985373,175.69,175.64,8.91985373]
[1730080575720,5.6921,175.69,175.65,8.91985373]
[1730080576103,6.2528,175.7,175.64,9.17083373]
[1730080576304,6.2528,175.7,175.66,9.17083373]
[1730080576615,15.17265373,175.7,175.66,0.25098]
[1730080577602,15.17265373,175.7,175.66,5.94368]
[1730080577912,15.17265373,175.7,175.61,0.5980832]
[1730080577913,8.91985373,175.68,175.61,0.5980832]
[1730080578117,8.91985373,175.68,175.63,8.91985373]
[1730080579696,14.61225373,175.68,175.63,8.91985373]
[1730080583518,14.61225373,175.68,175.63,14.61345373]
[1730080583923,6.2528,175.7,175.66,0.25098]
[1730080584229,15.17265373,175.7,175.66,0.25098]
[1730080585016,20.86415373,175.7,175.66,0.25098]
[1730080585614,15.17265373,175.7,175.66,0.25098]
[1730080585911,8.91985373,175.72,175.67,8.91985373]
[1730080586899,15.22745373,175.74,175.69,9.04534373]
[1730080587511,20.91785373,175.74,175.69,9.04534373]
[1730080588403,8.91985373,175.73,175.69,0.12549]
[1730080590405,14.61035373,175.73,175.69,0.12549]
[1730080591823,5.6905,175.73,175.69,0.12549]
[1730080592927,5.6905,175.73,175.69,9.04534373]
[1730080599233,5.6905,175.73,175.69,14.73714373]
[1730080599711,5.6905,175.73,175.7,8.91985373]
[1730080600432,6.3076,175.74,175.7,8.91985373]
[1730080601017,11.9979,175.74,175.7,8.91985373]
[1730080602232,11.9979,175.74,175.69,5.81729]
[1730080602532,11.9979,175.74,175.7,8.91985373]
[1730080603429,20.91775373,175.74,175.7,0.12549]
[1730080606139,6.3076,175.74,175.7,14.73684373]
[1730080606439,20.91765373,175.74,175.7,5.81699]
[1730080610022,20.91765373,175.74,175.7,0.12549]
[1730080610840,20.91765373,175.74,175.69,0.25098]
[1730080613539,20.91765373,175.74,175.69,9.17083373]
[1730080614546,20.91765373,175.74,175.69,14.86233373]
[1730080614749,8.91985373,175.73,175.69,0.25098]
[1730080616432,8.91985373,175.73,175.68,5.6921]
[1730080616633,14.61055373,175.73,175.68,5.6921]
[1730080621358,14.61055373,175.73,175.68,8.91985373]
[1730080622456,14.61055373,175.73,175.68,14.61185373]
[1730080624139,5.6907,175.73,175.68,14.61185373]
[1730080624457,14.61055373,175.73,175.68,14.61185373]
[1730080627856,8.91985373,175.72,175.68,14.61185373]
[1730080628755,14.61055373,175.73,175.68,14.61185373]
[1730080632663,8.91985373,175.72,175.67,8.91985373]
[1730080633645,14.61085373,175.72,175.67,8.91985373]
[1730080634972,8.91985373,175.71,175.67,0.25098]
[1730080635150,6.3076,175.74,175.65,5.6931]
[1730080635151,8.91985373,175.69,175.65,5.6931]
[1730080635551,8.91985373,175.68,175.65,5.6931]
[1730080636371,8.91985373,175.68,175.65,0.25098]
[1730080637665,8.91985373,175.68,175.64,5.94438]
[1730080638648,14.61165373,175.69,175.64,9.17083373]
[1730080638848,14.61165373,175.69,175.63,32.94771773]
[1730080639061,8.91985373,175.68,175.63,32.94771773]
[1730080639770,8.91985373,175.68,175.65,0.25098]
[1730080640649,8.91985373,175.69,175.65,0.25098]
[1730080642371,8.91985373,175.69,175.64,0.25098]
[1730080642565,8.91985373,175.69,175.64,5.94438]
[1730080643147,14.61165373,175.69,175.64,5.94438]
[1730080649571,8.91985373,175.68,175.64,5.94438]
[1730080652054,14.61205373,175.68,175.64,5.94438]
[1730080652556,8.91985373,175.66,175.61,15.21203693]
[1730080653472,8.91985373,175.65,175.61,6.2921832]
[1730080653865,8.91985373,175.65,175.62,0.25098]
[1730080654581,8.91985373,175.63,175.61,0.5980832]
[1730080655470,8.91985373,175.62,175.61,0.5980832]
[1730080656483,14.61395373,175.62,175.61,0.5980832]
[1730080658558,14.61395373,175.62,175.57,0.25098]
[1730080658757,5.6941,175.62,175.57,9.17083373]
[1730080659075,14.61395373,175.62,175.57,9.17083373]
[1730080659579,14.61395373,175.62,175.58,5.6954]
[1730080659764,14.61395373,175.62,175.58,4.6954]
[1730080660082,8.91985373,175.62,175.58,4.6954]
[1730080661870,14.61395373,175.62,175.58,4.6954]
[1730080662069,5.6941,175.62,175.58,13.61525373]
[1730080663383,8.91985373,175.62,175.58,4.6954]
[1730080665163,14.61405373,175.62,175.58,4.6954]
[1730080665566,8.91985373,175.6,175.55,5.92357731]
[1730080665783,8.91985373,175.59,175.55,11.61987731]
[1730080665981,8.91985373,175.59,175.55,5.6963]
[1730080666784,8.91985373,175.59,175.56,0.12549]
[1730080667081,8.91985373,175.59,175.55,0.25098]
[1730080667283,24.67275373,175.58,175.52,5.92223045]
[1730080667579,15.7529,175.58,175.54,8.91985373]
[1730080668597,15.7529,175.58,175.55,0.25098]
[1730080672863,21.4484,175.58,175.55,0.25098]
[1730080673283,20.0,175.61,175.55,14.86703373]
[1730080673472,22.1935,175.62,175.57,8.91985373]
[1730080673667,36.80745373,175.62,175.58,0.25098]
[1730080673866,27.8876,175.62,175.58,0.25098]
[1730080674086,22.1935,175.62,175.58,9.17083373]
[1730080674589,22.1935,175.62,175.58,14.86613373]
[1730080674771,14.61325373,175.64,175.6,8.91985373]
[1730080674965,14.61325373,175.64,175.58,5.94628]
[1730080675165,5.6934,175.64,175.6,8.91985373]
[1730080675889,14.61325373,175.64,175.6,0.25098]
[1730080676078,8.91985373,175.63,175.6,0.25098]
[1730080676477,14.61325373,175.64,175.6,0.25098]
[1730080678481,14.61325373,175.64,175.59,0.25098]
[1730080678676,8.91985373,175.62,175.57,8.91985373]
[1730080678874,8.91985373,175.62,175.58,0.25098]
[1730080679185,8.91985373,175.62,175.56,8.91985373]
[1730080679799,8.91985373,175.62,175.57,8.91985373]
[1730080679973,8.91985373,175.61,175.54,5.6967]
[1730080680281,8.91985373,175.6,175.54,5.6967]
[1730080680475,8.91985373,175.6,175.55,8.91985373]
[1730080680674,5.6949,175.6,175.55,5.6963]
[1730080680870,5.6949,175.6,175.56,8.91985373]
[1730080681801,5.6949,175.6,175.56,14.61585373]
[1730080682295,5.67032,175.6,175.56,14.61585373]
[1730080682674,5.67032,175.6,175.56,5.696]
[1730080682869,5.67032,175.6,175.55,8.91985373]
[1730080683197,14.59017373,175.6,175.56,0.25098]
[1730080683379,14.59017373,175.6,175.55,0.25098]
[1730080684108,14.59017373,175.6,175.55,5.94728]
[1730080685899,5.67032,175.6,175.55,9.17083373]
[1730080686599,5.67032,175.6,175.56,8.91985373]
[1730080686989,14.61455373,175.6,175.55,8.91985373]
[1730080687295,5.6947,175.6,175.56,0.25098]
[1730080688277,5.6947,175.6,175.56,5.94688]
[1730080689474,15.5969,175.61,175.58,0.25098]
[1730080689676,20.0,175.62,175.58,0.25098]
[1730080689977,20.0,175.62,175.58,9.17083373]
[1730080690382,20.0,175.62,175.58,8.17083373]
[1730080690692,20.0,175.62,175.57,8.91985373]
[1730080690893,28.91985373,175.62,175.57,8.91985373]
[1730080691080,8.91985373,175.62,175.57,8.91985373]
[1730080691897,14.61365373,175.63,175.57,8.91985373]
[1730080692879,8.91985373,175.63,175.58,5.94638]
[1730080693082,8.91985373,175.63,175.58,14.86623373]
[1730080693506,14.61365373,175.63,175.58,5.94638]
[1730080694585,8.91985373,175.63,175.58,14.86623373]
[1730080695281,14.61335373,175.64,175.58,14.86623373]
[1730080695590,14.61335373,175.64,175.59,8.91985373]
[1730080696894,14.61335373,175.64,175.59,14.61475373]
[1730080697090,16.0327,175.65,175.61,8.91985373]
[1730080697708,16.0327,175.65,175.62,9.04534373]
[1730080698908,6.1162,175.66,175.62,14.73924373]
[1730080701502,6.1162,175.66,175.63,8.91985373]
[1730080704792,6.1162,175.66,175.62,5.81939]
[1730080716224,15.03605373,175.66,175.62,0.12549]
[1730080716915,8.91985373,175.64,175.57,5.90399142]
[1730080717222,8.91985373,175.64,175.59,8.91985373]
[1730080718303,8.91985373,175.64,175.6,0.12549]
[1730080720429,5.6932,175.65,175.6,5.81989]
[1730080720731,8.91985373,175.64,175.6,5.81989]
[1730080721229,14.61305373,175.65,175.6,5.81989]
[1730080721728,6.1162,175.66,175.6,14.73974373]
[1730080721923,6.1162,175.66,175.63,8.91985373]
[1730080722230,15.8857,175.69,175.66,0.12549]
[1730080722541,15.8857,175.69,175.66,14.73784373]
[1730080723731,6.3714,175.7,175.66,14.73784373]
[1730080724526,24.43075373,175.73,175.68,8.41985373]
[1730080725697,8.91985373,175.72,175.68,0.12549]
[1730080726031,8.91985373,175.72,175.68,5.81749]
[1730080726907,21.2015,175.73,175.68,5.81749]
[1730080727111,8.91985373,175.72,175.68,5.81749]
[1730080728528,8.91985373,175.69,175.61,29.471284]
[1730080728731,8.91985373,175.69,175.64,8.91985373]
[1730080729407,5.691,175.72,175.61,29.471284]
[1730080729408,20.0,175.71,175.65,8.91985373]
[1730080729613,28.91985373,175.71,175.66,8.91985373]
[1730080730238,8.91985373,175.7,175.66,0.12549]
[1730080730535,8.91985373,175.69,175.65,5.6929]
[1730080731535,8.91985373,175.69,175.65,0.12549]
[1730080732808,14.61175373,175.69,175.65,0.12549]
[1730080733314,8.91985373,175.68,175.64,5.6934]
[1730080733712,8.91985373,175.67,175.62,0.25098]
[1730080733918,8.91985373,175.65,175.56,1.0964]
[1730080734121,8.91985373,175.64,175.59,14.61485373]
[1730080734431,8.91985373,175.64,175.59,11.60108333]
[1730080734833,8.91985373,175.64,175.59,20.52093706]
[1730080735332,8.91985373,175.64,175.6,0.12549]
[1730080736439,8.91985373,175.64,175.6,5.81999]
[1730080742021,8.91985373,175.63,175.59,5.90608333]
[1730080742333,8.91985373,175.62,175.59,5.90608333]
[1730080745125,14.61365373,175.63,175.59,11.60088333]
[1730080746230,8.91985373,175.64,175.59,20.52073706]
[1730080746434,14.61325373,175.65,175.59,20.52073706]
[1730080747232,8.91985373,175.65,175.6,9.04534373]
[1730080747435,14.61265373,175.66,175.61,8.91985373]